Cogmind - Beta 13 @@@ ROGUE MODE // 2024.04.03 @ 22:17:25 Player: CrimsonOccultist Result: Destroyed by Y-45 Defender with Beam Rifle Performance ------------- Evolutions (2) 1000 Regions Visited (6) 1200 Robots Destroyed (92) 460 Value Destroyed (2385) 2385 Prototype IDs (13) 260 Alien Tech Used (0) 0 Bonus (704) 704 TOTAL SCORE: 6009 Bonus ------- High Alert Combat Kills 4 Entered Garrisons 200 Used RIF Installer 500 Cogmind --------- Core Integrity 0/550 Matter 113/300 Energy 150/150 System Corruption 0% Temperature Cool (9) Movement Treading (145) Location -8/Garrison Parts ------- > --- POWER (1) -------- Micro Nuclear Core > --- PROPULSION (2) --- Advanced Treads Advanced Treads > --- UTILITY (6) ------ Large Storage Unit Improved Targeting Computer > --- WEAPON (2) ------- Datajack Katana > --- INVENTORY (15) --- Micro Nuclear Core Advanced Treads Advanced Treads Cesium-ion Thruster Cesium-ion Thruster Hacking Suite Hacking Suite System Shield System Shield Autogun Enhanced Autogun Peak State ------------ > --- POWER ------------ Micro Nuclear Core > --- PROPULSION ------- Advanced Treads Advanced Treads > --- UTILITY ---------- Large Storage Unit Improved Signal Interpreter Improved Targeting Computer Improved Medium Armor Plating Improved Medium Armor Plating Shield Generator > --- WEAPON ----------- Enhanced Autogun Enhanced Autogun > --- INVENTORY -------- Micro Nuclear Core Advanced Treads Advanced Treads Advanced Treads Cesium-ion Thruster Cesium-ion Thruster Hacking Suite Hacking Suite System Shield System Shield Assault Rifle Autogun Grenade Launcher Datajack Katana [Rating: 37] Favorites ----------- Power Light Nuclear Core Engine Ion Engine Power Core Light Nuclear Core Propulsion Advanced Treads Treads Advanced Treads Flight Unit Improved Flight Unit Utility Large Storage Unit Device Shield Generator Storage Large Storage Unit Processor Improved Targeting Computer Protection Improved Medium Armor Plating Weapon Assault Rifle Energy Gun Medium Laser Ballistic Gun Assault Rifle Launcher Grenade Launcher Slashing Weapon Katana Special Melee Weapon Datajack Build | -11 -10 -10 -10 -9 -8 -8 ------- Run | Yrd Mat Min Exi Min Mat Gar Slots Evolved 4 | . . . . . 4 . Power . | . . . . . . . Propulsion . | . . . . . . . Utility 4 | . . . . . 4 . Weapon . | . . . . . . . Parts Attached 89 | 7 17 2 3 . 55 5 Power 8 | 1 1 . . . 6 . Engine 4 | 1 1 . . . 2 . Core 4 | . . . . . 4 . Reactor . | . . . . . . . Propulsion 18 | 2 3 . . . 12 1 Treads 17 | 2 3 . . . 11 1 Leg . | . . . . . . . Wheel . | . . . . . . . Hover . | . . . . . . . Flight 1 | . . . . . 1 . Utility 21 | 1 4 . . . 16 . Device 2 | . . . . . 2 . Storage 7 | 1 2 . . . 4 . Processor 3 | . . . . . 3 . Hackware . | . . . . . . . Protection 9 | . 2 . . . 7 . Artifact . | . . . . . . . Weapon 42 | 3 9 2 3 . 21 4 Energy Gun 1 | 1 . . . . . . Energy Cannon . | . . . . . . . Ballistic Gun 28 | 2 6 1 2 . 16 1 Ballistic Cannon . | . . . . . . . Launcher 10 | . 3 1 . . 5 1 Special Weapon . | . . . . . . . Impact Weapon . | . . . . . . . Slashing Weapon 1 | . . . . . . 1 Piercing Weapon . | . . . . . . . Special Melee Weapon 2 | . . . 1 . . 1 Unidentified Prototypes 4 | . . . . . 4 . Parts Lost 14 | . 1 . . . 6 7 Power 2 | . . . . . 2 . Propulsion 3 | . 1 . . . 1 1 Utility 5 | . . . . . 2 3 Weapon 4 | . . . . . 1 3 Highest Loss Streak 6 | . 1 . . . 4 6 To Critical Strikes . | . . . . . . . Average Slot Usage (%) 94 | . 95 100 92 100 93 89 Engine 5 | . 14 14 14 14 . . Core 5 | . . . . . 8 9 Treads 21 | . 28 28 28 28 17 18 Device 4 | . . . . . 7 1 Storage 10 | . 14 14 14 14 9 9 Processor 8 | . . . . . 12 16 Protection 16 | . 10 14 14 14 19 17 Ballistic Gun 18 | . 27 26 6 14 17 17 Special Melee Weapon 1 | . . . 13 14 . . Naked Turns . | . . . . . . . Heaviest Build 121 | 14 31 29 28 27 121 48 Greatest Support 46 | 40 46 46 46 46 46 44 Greatest Overweight (x) 16 | . 1 . . . 16 1 Average Overweight (x) . | . . . . . . . Largest Inventory Capacity 25 | 8 15 15 15 15 25 15 Average Capacity 14 | 7 13 15 15 15 15 15 Most Carried 16 | 4 15 15 15 15 16 15 Average Carried 13 | 2 12 15 14 15 14 14 Final Capacity 15 | 8 15 15 15 15 15 15 Final Carried 15 | 4 15 15 15 15 15 11 Class Distribution -------------------- 100% | Mutant Dominant Class ---------------- Mutant | -10/Materials Mutant | -10/Mines Mutant | -10/Exiles Mutant | -9/Mines Mutant | -8/Materials Mutant | -8/Garrison Resources | -11 -10 -10 -10 -9 -8 -8 ----------- Run | Yrd Mat Min Exi Min Mat Gar Matter Collected 2721 | 196 623 61 . 29 1571 241 Remotely 319 | . . . . . 319 . Salvage Created 3013 | . 781 78 . . 1696 458 Parts 199 | . 56 12 . . 108 23 Haulers Intercepted 7 | . 2 . . . 5 . Recyclers Shooed 6 | . 4 . . . 2 . Parts Field Recycled . | . . . . . . . Retrieved Matter . | . . . . . . . Parts Self-Destructed . | . . . . . . . Prevented . | . . . . . . . Kills | -11 -10 -10 -10 -9 -8 -8 ------- Run | Yrd Mat Min Exi Min Mat Gar Combat Hostiles Destroyed 66 | . 16 6 . . 30 14 Guns 52 | . 14 4 . . 21 13 AOE 14 | . 2 2 . . 9 1 Classes Destroyed 12 | . 6 . . . 6 . Worker 6 | . . . . . 6 . Builder 1 | . . . . . 1 . Tunneler 1 | . . . . . 1 . Hauler 7 | . 2 . . . 5 . Recycler 2 | . 1 . . . 1 . Operator 2 | . 1 . . . 1 . Watcher 7 | . 3 . . . 4 . Swarmer 23 | . 6 6 . . 4 7 Grunt 33 | . 10 . . . 16 7 Duelist 2 | . . . . . 2 . Sentry 7 | . . . . . 7 . Hunter 1 | . . . . . 1 . Best Kill Streak 7 | . 4 3 . . 7 5 Combat Bots Only 5 | . 3 3 . . 5 5 Max Kills in Single Turn 3 | . 2 2 . . 3 1 Gunslinging . | . . . . . . . Exploded 2 | . 1 2 . . 2 1 Melee . | . . . . . . . Uniques/NPCs Destroyed . | . . . . . . . Combat | -11 -10 -10 -10 -9 -8 -8 -------- Run | Yrd Mat Min Exi Min Mat Gar Hostile Shots Fired 457 | . 71 31 . . 216 139 Missed 104 | . 9 11 . . 56 28 Damage Taken 4790 | . 648 157 . . 2214 1771 Core 683 | . 69 54 . . 195 365 Absorbed by Shields 291 | . . . . . 222 69 Redirected to Shielding 135 | . 12 10 . . 113 . Regen/Repaired (Parts) 354 | . 54 . . . 300 . Core Remaining (%) 75 | 100 . . . 50 . . Volleys Fired 299 | . 74 9 . . 165 51 Largest 2 | . 2 2 . . 2 2 Hottest 55 | . 50 50 . . 55 55 Shots Fired 594 | . 147 17 1 . 328 101 Gun 572 | . 144 15 1 . 312 100 Cannon . | . . . . . . . Launcher 22 | . 3 2 . . 16 1 Special . | . . . . . . . Kinetic 572 | . 144 15 1 . 312 100 Thermal . | . . . . . . . Explosive 22 | . 3 2 . . 16 1 Electromagnetic . | . . . . . . . Robot Hit Streak 27 | . 8 3 . . 27 14 Robot Miss Streak 5 | . 4 3 . . 5 4 Penetration Max . | . . . . . . . Secondary Targets 7 | . 1 1 . . 2 3 Max Gunslinging Chain 1 | . 1 1 . . 1 1 Shots Hit Robots 398 | . 85 6 . . 228 79 Core Hits 175 | . 38 5 . . 103 29 Critical Kills . | . . . . . . . Critical Parts Destroyed 3 | . 1 . . . 1 1 Critical Strikes 3 | . 1 . . . 1 1 Destroy 3 | . 1 . . . 1 1 Melee Attacks 2 | . . . . . . 2 Impact . | . . . . . . . Slashing 1 | . . . . . . 1 Piercing . | . . . . . . . Sneak Attacks . | . . . . . . . Combat Hostiles . | . . . . . . . Follow-up Attacks . | . . . . . . . Damage Inflicted 7120 | . 1218 190 . . 4280 1432 Guns 5689 | . 1115 90 . . 3184 1300 Cannons . | . . . . . . . Explosions 1195 | . 58 100 . . 934 103 Melee 29 | . . . . . . 29 Ramming 207 | . 45 . . . 162 . Kinetic 5689 | . 1115 90 . . 3184 1300 Thermal . | . . . . . . . Explosive 1195 | . 58 100 . . 934 103 Electromagnetic . | . . . . . . . Impact . | . . . . . . . Slashing 29 | . . . . . . 29 Piercing . | . . . . . . . Highest Corruption 2 | . 2 2 2 2 . . Average Corruption 1 | . 1 2 2 2 . . Corruption Purged . | . . . . . . . Corruption Blocked . | . . . . . . . Effects 33 | . 13 4 14 2 . . Message Errors 6 | . 2 2 . 2 . . Matter Fused 9 | . 6 1 2 . . . Heat Flow Errors 3 | . 1 . 2 . . . Energy Discharges 6 | . . . 6 . . . Parts Fused 1 | . 1 . . . . . Data Loss (minor) 1 | . . . 1 . . . Data Loss (major) 4 | . 1 1 2 . . . Misfires 1 | . . . 1 . . . Alerts 1 | . 1 . . . . . Weapon Failures 1 | . 1 . . . . . Overload Shots . | . . . . . . . Overflow Damage 31 | . . 10 . . 21 . Projectiles . | . . . . . . . Explosions 31 | . . 10 . . 21 . Melee . | . . . . . . . Knockbacks . | . . . . . . . Impact . | . . . . . . . Kinetic . | . . . . . . . Secondary . | . . . . . . . Self-Inflicted Damage . | . . . . . . . Shots . | . . . . . . . Rammed 48 | . 9 . . . 39 . Targets Rammed 49 | . 9 . . . 40 . Kicked . | . . . . . . . Crushed 1 | . . . . . 1 . Highest Temperature 263 | . 194 . 263 . 176 114 Average Temperature 38 | . 82 . 108 . 24 46 Received Heat Transfer 1770 | . 261 . . . 1044 465 Siege Activations . | . . . . . . . Robots Corrupted . | . . . . . . . Combat Hostiles . | . . . . . . . Parts Fried . | . . . . . . . Impact Corruptions . | . . . . . . . Robots Melted . | . . . . . . . Combat Hostiles . | . . . . . . . Parts Melted . | . . . . . . . Heat Transferred . | . . . . . . . Parts Sabotaged . | . . . . . . . Parts Stolen . | . . . . . . . Parts Stripped . | . . . . . . . Power Chain Reactions . | . . . . . . . Alert | -11 -10 -10 -10 -9 -8 -8 ------- Run | Yrd Mat Min Exi Min Mat Gar Peak Influence 421 | . 233 164 . . 283 421 Initial 127 | . . 12 . . . 127 Average 122 | . 63 107 . . 137 274 Maximum Alert Level 2 | . 1 . . . 1 2 Low Security (%) 79 | 100 94 100 . 100 78 17 Level 1 20 | . 5 . . . 21 75 Level 2 . | . . . . . . 6 Level 3 . | . . . . . . . Level 4 . | . . . . . . . Level 5 . | . . . . . . . High Security . | . . . . . . . Max Security . | . . . . . . . Squads Dispatched 9 | . 6 . . . 3 . Investigation 7 | . 5 . . . 2 . Extermination . | . . . . . . . Reinforcement 2 | . 1 . . . 1 . Assault . | . . . . . . . Garrison . | . . . . . . . Intercept . | . . . . . . . Searches Triggered . | . . . . . . . Construction Impeded . | . . . . . . . Haulers Reinforced . | . . . . . . . Active Scanning Responses . | . . . . . . . Cargo Convoy Interrupts . | . . . . . . . Stealth | -11 -10 -10 -10 -9 -8 -8 --------- Run | Yrd Mat Min Exi Min Mat Gar Distress Signals 3 | . 2 . . . 1 . Communications Jammed . | . . . . . . . Distress Signals . | . . . . . . . Times Spotted 110 | . 33 6 . . 52 19 Peak Tracking Total 7 | . 4 3 . . 6 7 Tactical Retreats 3 | . 2 . . . . 1 Traps | -11 -10 -10 -10 -9 -8 -8 ------- Run | Yrd Mat Min Exi Min Mat Gar Traps Triggered 6 | . 2 . . . 1 3 Indirectly . | . . . . . . . Trap Hack Attempts . | . . . . . . . Triggered . | . . . . . . . Disarmed 12 | . 12 . . . . . Reprogrammed . | . . . . . . . Reused . | . . . . . . . Traps Extracted . | . . . . . . . Installed . | . . . . . . . Triggered . | . . . . . . . Machines | -11 -10 -10 -10 -9 -8 -8 ---------- Run | Yrd Mat Min Exi Min Mat Gar Machines Disabled 3 | . 1 . . . 2 . Max in Single Turn 1 | . 1 . . . 1 . Machines Repaired . | . . . . . . . Machines Dismantled . | . . . . . . . Machines Sabotaged . | . . . . . . . Overloaded Fab Kills . | . . . . . . . Hacking | -11 -10 -10 -10 -9 -8 -8 --------- Run | Yrd Mat Min Exi Min Mat Gar Machines Accessed 22 | . 9 . . . 12 1 Terminals 14 | . 7 . . . 6 1 Fabricators . | . . . . . . . Repair Stations 3 | . 1 . . . 2 . Recycling Units 3 | . 1 . . . 2 . Scanalyzers 1 | . . . . . 1 . Garrison Access 1 | . . . . . 1 . Total Hacks 91 | . 45 . . . 45 1 Successful 53 | . 24 . . . 29 . Failed 38 | . 21 . . . 16 1 Catastrophic 5 | . 2 . . . 3 . Database Lockouts . | . . . . . . . Manual 40 | . 15 . . . 24 1 Terminals 61 | . 33 . . . 27 1 Fabricators . | . . . . . . . Repair Stations 18 | . 9 . . . 9 . Recycling Units 7 | . 3 . . . 4 . Scanalyzers 4 | . . . . . 4 . Garrison Access 1 | . . . . . 1 . Terminal Hacks 19 | . 11 . . . 8 . Prototype ID Bank 5 | . 2 . . . 3 . Alert Level 4 | . 2 . . . 2 . Unreport Threat 6 | . 3 . . . 3 . Disarm Traps 2 | . 2 . . . . . Recall Investigation 1 | . 1 . . . . . Recall Reinforcements 1 | . 1 . . . . . Fabricator Hacks . | . . . . . . . Repair Station Hacks 16 | . 8 . . . 8 . Scan Component 8 | . 4 . . . 4 . Repair 8 | . 4 . . . 4 . Recycling Unit Hacks 3 | . . . . . 3 . Retrieve Matter 1 | . . . . . 1 . Retrieve Components 2 | . . . . . 2 . Scanalyzer 4 | . . . . . 4 . Insert Component 2 | . . . . . 2 . Analyze 2 | . . . . . 2 . Garrison Access Hacks 1 | . . . . . 1 . Unlock Access 1 | . . . . . 1 . Unauthorized Hacks 10 | . 5 . . . 5 . Terminals 10 | . 5 . . . 5 . Track 2 | . 1 . . . 1 . Botnet 6 | . 3 . . . 3 . Operators 2 | . 1 . . . 1 . Fabricators . | . . . . . . . Repair Stations . | . . . . . . . Recycling Units . | . . . . . . . Scanalyzers . | . . . . . . . Garrison Access . | . . . . . . . Data Cores Recovered . | . . . . . . . Used . | . . . . . . . Hacking Detections 18 | . 8 . . . 9 1 Full Trace Events 8 | . 4 . . . 4 . Feedback Events 1 | . 1 . . . . . Corruption 1 | . 1 . . . . . Feedback Blocked . | . . . . . . . Robot Schematics Acquired . | . . . . . . . Robots Built . | . . . . . . . Authchips . | . . . . . . . Time . | . . . . . . . Total Robot Build Rating . | . . . . . . . Part Schematics Acquired 2 | . . . . . 2 . Parts Built . | . . . . . . . Authchips . | . . . . . . . Time . | . . . . . . . Total Part Build Rating . | . . . . . . . Parts Repaired 8 | . 4 . . . 4 . Time 257 | . 116 . . . 141 . Parts Recycled . | . . . . . . . Recycled Matter . | . . . . . . . Retrieved Matter 68 | . . . . . 68 . Retrieved Components 17 | . . . . . 17 . Parts Scanalyzed 2 | . . . . . 2 . Part Schematics Acquired 2 | . . . . . 2 . Parts Damaged . | . . . . . . . Bothacking | -11 -10 -10 -10 -9 -8 -8 ------------ Run | Yrd Mat Min Exi Min Mat Gar Used RIF Installer 1 | . . . . . . 1 Robots Hacked 1 | . . . . . . 1 Non-combat . | . . . . . . . Combat 1 | . . . . . . 1 Robot Hacks Applied 1 | . . . . . . 1 parse_system 1 | . . . . . . 1 Relay Couplers Released . | . . . . . . . Fabnet Peak Effective % . | . . . . . . . Robots Rewired . | . . . . . . . Allies Hacked . | . . . . . . . Hacks Repelled . | . . . . . . . Allies | -11 -10 -10 -10 -9 -8 -8 -------- Run | Yrd Mat Min Exi Min Mat Gar Total Allies . | . . . . . . . Largest Group . | . . . . . . . Highest-Rated Group . | . . . . . . . Highest-Rated Ally . | . . . . . . . Total Orders . | . . . . . . . Ally Attacks . | . . . . . . . Total Damage . | . . . . . . . Kills . | . . . . . . . Allies Corrupted . | . . . . . . . Allies Melted . | . . . . . . . Intel | -11 -10 -10 -10 -9 -8 -8 ------- Run | Yrd Mat Min Exi Min Mat Gar Robot Analysis Total . | . . . . . . . Derelict Logs Recovered 1 | . . . . 1 . . Drone Launches . | . . . . . . . Drone Recoveries . | . . . . . . . Exploration | -11 -10 -10 -10 -9 -8 -8 ------------- Run | Yrd Mat Min Exi Min Mat Gar Turns Passed 8162 | 166 1861 145 831 128 4529 502 Spaces Moved 3399 | 97 870 73 515 69 1609 166 Core 3 | 2 . . . . 1 . Treads 3396 | 95 870 73 515 69 1608 166 Legs . | . . . . . . . Wheels . | . . . . . . . Hover . | . . . . . . . Flight . | . . . . . . . Fastest Speed 50 | 50 160 160 160 160 145 145 Average Speed 183 | 157 160 160 160 160 204 219 Slowest Speed 850 | 160 240 160 160 160 850 225 Overloaded Moves . | . . . . . . . Propulsion Burnouts . | . . . . . . . Robots Hopped . | . . . . . . . Cave-ins Triggered . | . . . . . . . Exploration Rate (%) 47 | 5 95 32 69 22 80 31 Regions Visited 6 Branch Regions 3 Pre-discovered Areas 2 | . . . . 2 . . Known Exits Taken 1 | . . . . . 1 . Unknown Exits Taken 5 | 1 1 1 1 1 . . Scrap Searched 1 | . . . . 1 . . Spaces Dug 6 | . . . . . 6 . Terrain Destroyed 109 | . 22 13 . . 70 4 Melee . | . . . . . . . Projectile . | . . . . . . . AOE 109 | . 22 13 . . 70 4 Terrain Rammed . | . . . . . . . Walls Destroyed . | . . . . . . . Machines Disabled . | . . . . . . . Actions | -11 -10 -10 -10 -9 -8 -8 --------- Run | Yrd Mat Min Exi Min Mat Gar Total 4761 | 107 1183 83 522 87 2544 235 Wait 831 | . 188 . 3 19 614 7 Move 3393 | 96 869 72 514 68 1608 166 Hop . | . . . . . . . Pick Up 42 | 4 17 . . . 21 . Fast Attach 36 | 6 3 . 1 . 26 . Attach 15 | . 3 . 1 . 7 4 Detach 3 | . 1 . . . 2 . Swap 38 | 1 11 2 1 . 22 1 Drop 49 | . 8 . 2 . 39 . Fire 299 | . 74 9 . . 165 51 Melee 2 | . . . . . . 2 Ram . | . . . . . . . Kick . | . . . . . . . Crush 49 | . 9 . . . 40 . Escape Stasis 4 | . . . . . . 4 Rewire . | . . . . . . . Trap . | . . . . . . . Miscellaneous . | . . . . . . . Route ------- -11/Scrapyard -10/Materials (discovered 4 exits: [*Mat x3] / [*Min]) -10/Mines (discovered 2 exits: [*Mat] / [*Exi]) -10/Exiles (discovered 2 exits: [*Min x2]) -9/Mines -8/Materials (discovered 2 exits: [*Fac] / Gar) -8/Garrison History --------- Turn | Location | Event 18 | -11/Scrapyard | Discovered new exit (range 15) 167 | -11/Scrapyard | Entered Materials 303 | -10/Materials | Discovered new exit (range 13) 336 | -10/Materials | Build established: Mutant 721 | -10/Materials | Discovered new exit (range 3) 1083 | -10/Materials | Discovered new exit (range 16) 1556 | -10/Materials | Discovered new exit (range 15) 1876 | -10/Materials | Repaired Hacking Suite 1903 | -10/Materials | Repaired Ion Engine 1930 | -10/Materials | Repaired Assault Rifle 1957 | -10/Materials | Repaired Core Shielding 2028 | -10/Materials | Entered Mines 2081 | -10/Mines | Met a Derelict bent on vengeance 2111 | -10/Mines | Discovered new exit (range 7) 2165 | -10/Mines | Deemed a non-threat by the Exiles lab entrance 2166 | -10/Mines | Discovered new exit (range 5) 2173 | -10/Mines | Entered Exiles 2173 | -10/Exiles | Found Exiles lab abandoned 2652 | -10/Exiles | Discovered new exit (range 15) 2990 | -10/Exiles | Discovered new exit (range 10) 3004 | -10/Exiles | Entered Mines 3005 | -9/Mines | Learned location of Storage (-7) 3054 | -9/Mines | Discovered new exit (range 8) 3081 | -9/Mines | Learned location of Zion (-7) 3082 | -9/Mines | YI-UF0 nonchalantly dropped a Grenade Launcher on the ground 3132 | -9/Mines | Entered Materials 3132 | -8/Materials | Evolved 4 slots: Utility x4 3716 | -8/Materials | Lost 4 parts (1p1n1u1w) 3998 | -8/Materials | Repaired Assault Rifle 4486 | -8/Materials | Discovered new exit (range 3) 4621 | -8/Materials | Repaired Assault Rifle 4661 | -8/Materials | Repaired Adv. Treads 4713 | -8/Materials | Repaired Imp. Assault Rifle 4823 | -8/Materials | Identified exit to Garrison 7661 | -8/Materials | Entered Garrison 7684 | -8/Garrison | Installed Relay Interface Framework 7730 | -8/Garrison | Triggered checkpoint 7974 | -8/Garrison | Triggered checkpoint 8039 | -8/Garrison | Core integrity fell below 50% 8099 | -8/Garrison | Spotted B-75 Beast 8155 | -8/Garrison | Core integrity fell below 20% 8163 | -8/Garrison | Destroyed by Y-45 Defender with Beam Rifle Last Messages --------------- 08038_ Destroyed Imp. Heat Sink. 08040_ G-47 Trooper destroyed. 08056_ Connecting with Garrison Terminal... 08098_ Triggered Alarm Trap. 08098_ An alarm sounds. 08102_ S-10 Pest destroyed. 08103_ Grenade Launcher destroyed. 08103_ Imp. Signal Interpreter destroyed. 08103_ Critical hit (Blast). 08104_ Acquired 6 matter. 08121_ S-10 Pest destroyed. 08124_ Switching to secondary target: G-50 Soldier. 08132_ Adv. Treads destroyed. 08135_ Imp. Medium Armor Plating blasted off. 08154_ Imp. Medium Armor Plating destroyed. 08154_ Enh. Autogun destroyed. 08157_ Assault Rifle destroyed. 08159_ Jacked B-75 Beast... >>parse_system Reading system data... Map ----- +----------------------------------------------------+ | ?????????????????????????????????????????????????? | | ?????????????????????????????????????????????????? | | ?????????????????????????????????????????????????? | | ?????????????????????##??????????????????????????? | | ????????????????????? #?????????????????????????? | | ????????????????????? #?????????????????????????? | | ????????????????????# ##????????????????????????? | | ???????????????????? ????????????????????????? | | ???????????????????? ????????????????????????? | | ????????????????????# #????????????????????????? | | ???????????????????##%[ ?????????????????????????? | | ???????????????????? ?????????????????????????? | | ???????????????????? #?????????????????????????? | | ???????????????????? ###???????????????????????? | | ????????????????????# ????????????????????????? | | ????????????????????# #?????????????????????????? | | ????????????????????# ^#?????????????????????????? | | ????????????????????# #?????????????????????????? | | ????????????????????# #?????????????????????????? | | ????????????????????# #???#?????????????????????? | | ????????????????????# #???# ????????????????????? | | ????????????????????# #???# ????????????????????? | | ????????????????????# ###?#%#??######""""######?? | | ????????????????????# #T###+#### #?? | | ????????????????????# =BB %gY =% ?? | | ????????????????????# [BB@%%Y = ?? | | ????????????????????############# ## ^ #?? ??? | | ??????????????????????????????### ##^ ## #?? | | ??????????????????????????????# "?? | | ??????????????????????????????# [ "?? | | ??????????????????????????????#*%= "?? | | ??????????????????????????????# =!= "?? | | ??????????????????????????????### ==## ## #?? | | ????????????????????????????????# % ## ## ##? | | ????????????????????????????????# | | ????????????????????????????????# | | ????????????????????????????????# #?? | | ????????????????????????????????# ##""""######?? | | ????????????????????????????????# #????????????? | | ????????????????????????????????# #????????????? | | ????????????????????????????????# #????????????? | | ????????????????????????????????# #????????????? | | ????????????????????????????????# #????????????? | | ????????????????????????????????# #????????????? | | ??????####?###################### #????????????? | | ????### #?# ^ #????????????? | | ????#"# #?# ^ #????????????? | | ????#" #?# #????????????? | | ????#" #?# ######################????????????? | | ????#" #?# #?????????????????????????????????? | +----------------------------------------------------+ Best States ------------- Heat Dissipation 31 Energy Generation 15 Energy Capacity 265 Matter Stores 300 Matter Capacity 300 Sight Range 16 Terrain Scan Density 10 Armor Coverage 600 Core Shielding 20 Propulsion Shielding 66 Evasion (%) 40 Targeting Accuracy 6 Recoil Reduction 2 Item Schematics ----------------- Hacking Suite | -8/Materials | Scanalyzed Surge Thruster | -8/Materials | Scanalyzed Robot Schematics ------------------ None Fabricated ------------ Nothing Alien Tech Used ----------------- None Achievements -------------- None Challenges ------------ None Game ------ Seed OmegaTractorChip Manual? 0 Play Time 00:52:15 Cumulative 14.4 hours Start 2024.04.03 @ 21:15:00 End 2024.04.03 @ 22:17:25 Sessions 1 Manual Loads 0 Difficulty Rogue Special Mode None Game No. 14 Rogue 14 Adventurer 0 Explorer 0 Win Type - Total 0 Types 0/0/0/0/0/0/0/0/0 Lore% 8 Gallery% 21 Achievement% 19 Wizard Run 0 Options --------- Layout 0 ASCII 0 Keyboard 1 Movement Numpad Keybinds 0 Fullscreen 1 Font 18/SmallcapsGlow Map View 76x50 Zoom Use 0% Tactical HUD 1 Map Filters NONE Filters NONE Steam 1 RUN: 36c007c5-4bd5-487a-b888-249a83055ec6